Cogmind - Beta 9.6 @@@ ROGUE MODE // 2020.09.02 @ 00:24:15 Player: Honkmo Jones Result: Destroyed by G-34 Mercenary via exploding Fusion Modulator Performance ------------- Evolutions (1) 500 Regions Visited (2) 400 Robots Destroyed (46) 230 Value Destroyed (1155) 1155 Prototype IDs (4) 80 Alien Tech Used (0) 0 Bonus (0) 0 TOTAL SCORE: 2365 Bonus ------- None Cogmind --------- Core Integrity 0/400 Matter 300/300 Energy 147/160 System Corruption 1% Temperature Cool (12) Movement Walking (150) Ox1 Location -9/Materials Parts ------- > --- POWER (1) -------- Light Nuclear Core > --- PROPULSION (2) --- Aluminum Leg Aluminum Leg > --- UTILITY (4) ------ Heat Sink High-capacity Storage Unit Targeting Computer Armor Integrity Analyzer > --- WEAPON (2) ------- (None) > --- INVENTORY (12) --- Ion Engine Aluminum Leg Weight Redist. System Transport Network Coupler Hacking Suite Peak State ------------ > --- POWER ------------ Light Ion Engine > --- PROPULSION ------- Aluminum Leg Aluminum Leg > --- UTILITY ---------- High-capacity Storage Unit Improved Sensor Array Improved Signal Interpreter Targeting Computer > --- WEAPON ----------- Heavy Assault Rifle Autogun > --- INVENTORY -------- Light Ion Engine Light Treads Light Treads Aluminum Leg Heat Sink Transport Network Coupler Armor Integrity Analyzer Hardened Light Armor Plating Autogun Grenade Launcher [Rating: 14] Favorites ----------- Power Light Ion Engine Engine Light Ion Engine Power Core Light Nuclear Core Propulsion Aluminum Leg Treads Light Treads Leg Aluminum Leg Utility High-capacity Storage Unit Device Improved Sensor Array Storage High-capacity Storage Unit Processor Targeting Computer Protection Hardened Light Armor Plating Weapon Beam Cannon Energy Gun Medium Laser Energy Cannon Beam Cannon Ballistic Gun Autogun Launcher Grenade Launcher Build | -11 -10 -9 ------- Run | Scr Mat Mat Slots Evolved 2 | . . 2 Power . | . . . Propulsion . | . . . Utility 2 | . . 2 Weapon . | . . . Parts Attached 53 | 7 14 32 Power 5 | 1 1 3 Engine 4 | 1 1 2 Core 1 | . . 1 Reactor . | . . . Propulsion 20 | 3 3 14 Treads 1 | 1 . . Leg 19 | 2 3 14 Wheel . | . . . Hover . | . . . Flight . | . . . Utility 10 | 1 3 6 Device 4 | . 1 3 Storage 2 | 1 1 . Processor 3 | . 1 2 Hackware . | . . . Protection 1 | . . 1 Artifact . | . . . Weapon 18 | 2 7 9 Energy Gun 4 | 1 1 2 Energy Cannon 5 | . 3 2 Ballistic Gun 7 | 1 2 4 Ballistic Cannon . | . . . Launcher 2 | . 1 1 Special Weapon . | . . . Impact Weapon . | . . . Slashing Weapon . | . . . Piercing Weapon . | . . . Special Melee Weapon . | . . . Unidentified Prototypes . | . . . Parts Lost 24 | . 7 17 Power 3 | . 1 2 Propulsion 8 | . 2 6 Utility 2 | . . 2 Weapon 11 | . 4 7 Highest Loss Streak 6 | . 5 6 Average Slot Usage (%) 96 | . 96 96 Engine 11 | . 13 10 Leg 24 | . 27 21 Device 7 | . 5 9 Storage 12 | . 14 11 Processor 15 | . 6 21 Energy Gun 4 | . 6 3 Energy Cannon 7 | . 6 7 Ballistic Gun 8 | . 10 7 Launcher 2 | . 3 2 Naked Turns . | . . . Heaviest Build 46 | 12 46 43 Greatest Support 20 | 20 20 20 Greatest Overweight (x) 4 | . 3 4 Average Overweight (x) 1 | . 1 1 Largest Inventory Capacity 14 | 6 14 12 Average Capacity 11 | 5 11 12 Most Carried 12 | 6 12 12 Average Carried 9 | 3 8 10 Final Capacity 12 | 6 12 12 Final Carried 12 | 4 12 5 Class Distribution -------------------- 83% | Mutant 16% | Scavenger-Mutant Dominant Class ---------------- Mutant | -10/Materials Mutant | -9/Materials Resources | -11 -10 -9 ----------- Run | Scr Mat Mat Matter Collected 972 | 206 230 536 Remotely . | . . . Salvage Created 1388 | . 466 922 Parts 89 | . 30 59 Haulers Intercepted 2 | . 1 1 Recyclers Shooed 1 | . 1 . Parts Field Recycled . | . . . Retrieved Matter . | . . . Parts Self-Destructed . | . . . Prevented . | . . . Kills | -11 -10 -9 ------- Run | Scr Mat Mat Combat Hostiles Destroyed 39 | . 15 24 Melee 1 | . . 1 Guns 16 | . 6 10 Cannons 15 | . 5 10 AOE 7 | . 4 3 Classes Destroyed 8 | . 5 3 Worker 1 | . 1 . Builder 1 | . 1 . Hauler 2 | . 1 1 Operator 1 | . . 1 Watcher 2 | . . 2 Swarmer 13 | . 6 7 Grunt 25 | . 9 16 Sentry 1 | . . 1 Best Kill Streak 5 | . 4 5 Combat Bots Only 4 | . 3 4 Max Kills in Single Turn 2 | . 2 2 Gunslinging . | . . . Exploded 2 | . 1 2 Melee 1 | . . 1 Uniques/NPCs Destroyed . | . . . Combat | -11 -10 -9 -------- Run | Scr Mat Mat Damage Taken 3071 | . 917 2154 Core 530 | . 128 402 Absorbed by Shields . | . . . Core Remaining (%) 74 | 100 48 . Volleys Fired 111 | . 48 63 Largest 2 | . 2 2 Hottest 120 | . 120 120 Shots Fired 201 | . 91 110 Gun 121 | . 48 73 Cannon 71 | . 36 35 Launcher 9 | . 7 2 Special . | . . . Kinetic 82 | . 24 58 Thermal 94 | . 60 34 Explosive 9 | . 7 2 Electromagnetic 16 | . . 16 Robot Hit Streak 21 | . 14 21 Robot Miss Streak 5 | . 3 5 Penetration Max . | . . . Secondary Targets 1 | . . 1 Max Gunslinging Chain 1 | . . 1 Shots Hit Robots 126 | . 53 73 Core Hits 73 | . 32 41 Critical Hits 2 | . . 2 Critical Kills 1 | . . 1 Critical Parts Destroyed 1 | . . 1 Melee Attacks . | . . . Impact . | . . . Slashing . | . . . Piercing . | . . . Sneak Attacks . | . . . Combat Hostiles . | . . . Follow-up Attacks . | . . . Damage Inflicted 2549 | . 1153 1396 Guns 1075 | . 349 726 Cannons 904 | . 402 502 Explosions 541 | . 391 150 Melee . | . . . Ramming 29 | . 11 18 Kinetic 730 | . 129 601 Thermal 958 | . 622 336 Explosive 541 | . 391 150 Electromagnetic 291 | . . 291 Impact . | . . . Slashing . | . . . Piercing . | . . . Highest Corruption 2 | . 2 1 Average Corruption 1 | . 2 1 Corruption Purged . | . . . Effects 6 | . 5 1 Message Errors 2 | . 2 . Energy Discharges 2 | . 2 . Targeting Errors 2 | . 1 1 Overload Shots . | . . . Overflow Damage 41 | . 17 24 Projectiles 38 | . 14 24 Explosions 3 | . 3 . Melee . | . . . Knockbacks . | . . . Impact . | . . . Kinetic . | . . . Secondary . | . . . Self-Inflicted Damage 96 | . 49 47 Shots 2 | . 1 1 Rammed 7 | . 2 5 Targets Rammed 9 | . 3 6 Kicked 2 | . 1 1 Crushed . | . . . Highest Temperature 312 | . 312 138 Average Temperature 51 | . 65 41 Received Heat Transfer 867 | . 207 660 Effects 2 | . 2 . Interference 2 | . 2 . Siege Activations . | . . . Robots Corrupted . | . . . Combat Hostiles . | . . . Parts Fried 2 | . . 2 Impact Corruptions . | . . . Robots Melted . | . . . Combat Hostiles . | . . . Parts Melted 2 | . 2 . Heat Transferred 2236 | . 1517 719 Parts Sabotaged . | . . . Parts Stolen . | . . . Parts Stripped . | . . . Power Chain Reactions . | . . . Missiles Intercepted . | . . . Alert | -11 -10 -9 ------- Run | Scr Mat Mat Peak Influence 286 | . 254 286 Average Influence 135 | . 106 164 Maximum Alert Level 1 | . 1 1 Low Security (%) 72 | 100 86 60 Level 1 27 | . 13 39 Level 2 . | . . . Level 3 . | . . . Level 4 . | . . . Level 5 . | . . . High Security . | . . . Max Security . | . . . Squads Dispatched 7 | . 3 4 Investigation 7 | . 3 4 Extermination . | . . . Reinforcement . | . . . Assault . | . . . Garrison . | . . . Intercept . | . . . Construction Impeded . | . . . Haulers Reinforced . | . . . Stealth | -11 -10 -9 --------- Run | Scr Mat Mat Distress Signals 5 | . 3 2 Communications Jammed . | . . . Distress Signals . | . . . Times Spotted 79 | . 29 50 Peak Tracking Total 7 | . 5 7 Tactical Retreats 7 | . 1 6 Traps | -11 -10 -9 ------- Run | Scr Mat Mat Traps Triggered 2 | . 2 . Indirectly . | . . . Trap Hack Attempts . | . . . Triggered . | . . . Disarmed 4 | . 4 . Reprogrammed . | . . . Reused . | . . . Traps Extracted . | . . . Installed . | . . . Triggered . | . . . Machines | -11 -10 -9 ---------- Run | Scr Mat Mat Machines Disabled 2 | . 1 1 Max in Single Turn 1 | . 1 1 Machines Sabotaged . | . . . Garrisons Compromised . | . . . Overloaded Fab Kills . | . . . Fab Network Shutdowns . | . . . Hacking | -11 -10 -9 --------- Run | Scr Mat Mat Machines Accessed 10 | . 5 5 Terminals 8 | . 5 3 Fabricators . | . . . Repair Stations 1 | . . 1 Recycling Units . | . . . Scanalyzers 1 | . . 1 Garrison Access . | . . . Total Hacks 43 | . 18 25 Successful 27 | . 7 20 Failed 15 | . 11 4 Catastrophic 2 | . 1 1 Database Lockouts 3 | . . 3 Manual 20 | . 8 12 Terminals 30 | . 18 12 Fabricators . | . . . Repair Stations 4 | . . 4 Recycling Units . | . . . Scanalyzers 9 | . . 9 Garrison Access . | . . . Terminal Hacks 14 | . 7 7 Robot Analysis 1 | . . 1 Prototype ID Bank 2 | . 1 1 Emergency Access Points 3 | . 2 1 Terminal Index 1 | . 1 . Disarm Traps 1 | . 1 . Recall Investigation 2 | . 1 1 Zone Layout 4 | . 1 3 Fabricator Hacks . | . . . Repair Station Hacks 4 | . . 4 Scan Component 2 | . . 2 Repair 2 | . . 2 Recycling Unit Hacks . | . . . Scanalyzer 9 | . . 9 Insert Component 4 | . . 4 Analyze 5 | . . 5 Garrison Access Hacks . | . . . Unauthorized Hacks . | . . . Terminals . | . . . Fabricators . | . . . Repair Stations . | . . . Recycling Units . | . . . Scanalyzers . | . . . Garrison Access . | . . . Data Cores Recovered 1 | . . 1 Used . | . . . Hacking Detections 8 | . 3 5 Full Trace Events 5 | . 1 4 Feedback Events 1 | . . 1 Corruption 1 | . . 1 Feedback Blocked . | . . . Robot Schematics Acquired . | . . . Robots Built . | . . . Matter . | . . . Time . | . . . Total Robot Build Rating . | . . . Part Schematics Acquired 4 | . . 4 Parts Built . | . . . Matter . | . . . Time . | . . . Total Part Build Rating . | . . . Parts Repaired 2 | . . 2 Time 52 | . . 52 Parts Recycled . | . . . Recycled Matter . | . . . Retrieved Matter . | . . . Retrieved Components . | . . . Parts Scanalyzed 4 | . . 4 Part Schematics Acquired 4 | . . 4 Parts Damaged . | . . . Bothacking | -11 -10 -9 ------------ Run | Scr Mat Mat Used RIF Installer . | . . . Robots Hacked . | . . . Non-combat . | . . . Combat . | . . . Robot Hacks Applied . | . . . Relay Couplers Released . | . . . Robots Rewired . | . . . Allies Hacked . | . . . Hacks Repelled . | . . . Allies | -11 -10 -9 -------- Run | Scr Mat Mat Total Allies . | . . . Largest Group . | . . . Highest-Rated Group . | . . . Highest-Rated Ally . | . . . Total Orders . | . . . Ally Attacks . | . . . Total Damage . | . . . Kills . | . . . Allies Corrupted . | . . . Allies Melted . | . . . Intel | -11 -10 -9 ------- Run | Scr Mat Mat Robot Analysis Total 1 | . . 1 Derelict Logs Recovered . | . . . Drone Launches . | . . . Drone Recoveries . | . . . Exploration | -11 -10 -9 ------------- Run | Scr Mat Mat Turns Passed 2187 | 68 897 1222 Spaces Moved 946 | 53 414 479 Core 18 | 18 . . Treads . | . . . Legs 928 | 35 414 479 Wheels . | . . . Hover . | . . . Flight . | . . . Fastest Speed 50 | 50 120 150 Average Speed 160 | 96 153 174 Slowest Speed 240 | 120 210 240 Overloaded Moves . | . . . Propulsion Burnouts . | . . . Robots Hopped . | . . . Cave-ins Triggered . | . . . Exploration Rate (%) 30 | 4 60 28 Regions Visited 2 Branch Regions . Pre-discovered Areas . | . . . Known Exits Taken . | . . . Unknown Exits Taken 2 | 1 1 . Scrap Searched . | . . . Spaces Dug . | . . . Terrain Destroyed 33 | . 24 9 Melee . | . . . Projectile . | . . . AOE 33 | . 24 9 Actions | -11 -10 -9 --------- Run | Scr Mat Mat Total 1414 | 68 586 760 Wait 223 | . 78 145 Move 944 | 52 413 479 Hop . | . . . Pick Up 53 | 8 23 22 Fast Attach 6 | 3 . 3 Attach 34 | 3 10 21 Detach . | . . . Swap 13 | 1 4 8 Drop 21 | 1 7 13 Fire 111 | . 48 63 Melee . | . . . Ram . | . . . Kick 9 | . 3 6 Crush . | . . . Escape Stasis . | . . . Rewire . | . . . Trap . | . . . Miscellaneous . | . . . Route ------- -11/Scrapyard -10/Materials (discovered 2 exits: *Mat x2) -9/Materials History --------- Turn | Location | Event 12 | -11/Scrapyard | Discovered new exit (range 15) 69 | -11/Scrapyard | Entered Materials 306 | -10/Materials | Build established: Mutant 414 | -10/Materials | Lost 5 parts (1p1n3w) 449 | -10/Materials | Discovered new exit (range 5) 717 | -10/Materials | Discovered new exit (range 16) 908 | -10/Materials | Core integrity fell below 50% 966 | -10/Materials | Entered another Materials area 966 | -9/Materials | Evolved 2 slots: Utility x2 1159 | -9/Materials | Central database locked down 1315 | -9/Materials | Lost 5 parts (1p2n2w) 1537 | -9/Materials | Repaired Aluminum Leg 1563 | -9/Materials | Repaired Aluminum Leg 1942 | -9/Materials | Core integrity fell below 50% 2090 | -9/Materials | Build established: Scavenger-Mutant 2188 | -9/Materials | Destroyed by G-34 Mercenary via exploding Fusion Modulator Last Messages --------------- 02142_ Sml. Laser destroyed. 02143_ Lgt. Assault Rifle destroyed. 02144_ B-36 Bruiser destroyed. 02145_ K-01 Serf cleans the Integration Channel. 02146_ R-06 Scavenger collects Hammer. 02149_ K-01 Serf cleans the Integration Channel. 02154_ K-01 Serf collects debris. 02161_ Aluminum Leg destroyed. 02162_ K-01 Serf collects debris. 02169_ Slammed into S-10 Pest. 02172_ Aluminum Leg destroyed. 02175_ S-10 Pest destroyed. 02178_ Kicked S-10 Pest out of the way. 02178_ Aluminum Leg destroyed. 02179_ Hrd. Light Armor Plating destroyed. 02179_ Slammed into S-10 Pest. 02184_ S-10 Pest destroyed. 02187_ Acquired 10 matter. 02188_ Fusion Modulator explodes. 02188_ Acquired 10 matter. Map ----- +----------------------------------------------------+ | " #??????????????????????????????????????????????? | | " ####???#???????????????????????????????????????? | | / #??????????????????????????????????????? | | ######??? #??????????????????????????????????????? | | ????????# #??????????????????????????????????????? | | ????????# #??????????????????????????????????????? | | #####???# #???????? ???????????????????????????? | | #???# #??+#???# #??????????????????????????? | | "" #???# #?? #???# #??????????????????????????? | | "" #???#%#?? #???# #??????????????????????????? | | "" #?### ### #???# #??????????????????????????? | | "" #?# ##### #??????????????????????????? | | #?# #??????????????????????????? | | #?# #??????????????????????????? | | #?# """"" #??????????????????????????? | | #?# """"""""" #??????????????????????????? | | #####?# %*""" """ #?????????#????????????????? | | ####### w #??????? ?????????????????? | | #######/######?????????????? | | % ????????????? | | = ????????????? | | ####### %= ????????????? | | ###???# ###+######/#######???????????????????? | | #???######## # gg #?????????????????????? | | = #??????????# "# s %[!#?????????????????????? | | #??????????# T# ^ @%#?????????????????????? | | #??????????# "# #?????????????????????? | | #??????????# # "S #?????????????????????? | | #??????????# = # """ #?????????????????????? | | #??????????# # "" #?????????????????????? | | #??????????##### #?????????????????????? | | #??????????????###########?????????????????????? | | ###??????????????????????????????????????????????? | | | | | | | | | | | | | | | | | | | | | | | | | | | | | | | | | | | +----------------------------------------------------+ Best States ------------- Heat Dissipation 35 Energy Generation 14 Energy Capacity 250 Matter Stores 300 Matter Capacity 300 Sight Range 16 Robot Scan Range 13 Terrain Scan Density 10 Armor Coverage 150 Evasion (%) 50 Targeting Accuracy 5 Armor Integrity Analysis 33 Recoil Reduction 1 Item Schematics ----------------- Aluminum Leg | -9/Materials | Scanalyzed Beam Cannon | -9/Materials | Scanalyzed Heat Sink | -9/Materials | Scanalyzed Hrd. Light Armor Plating | -9/Materials | Scanalyzed Robot Schematics ------------------ None Fabricated ------------ Nothing Alien Tech Used ----------------- None Achievements -------------- None Challenges ------------ None Game ------ Seed FissionTransdimensionalArmor Manual? 0 Play Time 00:38:42 Cumulative 6.8 hours Start 2020.09.01 @ 23:29:18 End 2020.09.02 @ 00:24:15 Sessions 1 Manual Loads 0 Difficulty Rogue Special Mode None Game No. 17 Rogue 17 Adventurer 0 Explorer 0 Win Type - Total 0 Types 0/0/0/0/0/0/0 Lore% 12 Gallery% 12 Achievement% 13 Wizard Run 0 Options --------- ASCII 0 Keyboard 0 Movement Mouse Keybinds 0 Fullscreen 2 Font 14/Dina Map View 84x54 Tactical HUD 1 Map Filters NONE Filters NONE Steam 1 RUN: a4a3a0ee-c382-4021-8579-0146bc0ca201